bitfinex/quotes_SOLUSD_20260119
["timestamp","ask_amount","ask_price","bid_price","bid_amount"]
[1768783456002,10.87042466,134.42,134.35,7.44315146]
[1768783456210,10.87042466,134.4,134.34,11.21239961]
[1768783456427,4.00848267,134.39,134.34,6.86194199]
[1768783456702,10.87042466,134.39,134.33,6.86194199]
[1768783457206,10.87042466,134.39,134.33,14.30616424]
[1768783457701,6.86194199,134.37,134.31,14.30730942]
[1768783458014,6.86194199,134.38,134.31,14.30730942]
[1768783458215,10.87042466,134.38,134.31,14.30730942]
[1768783458419,7.44147502,134.39,134.34,4.35045762]
[1768783458825,7.44147502,134.39,134.35,6.86194199]
[1768783459026,7.44147502,134.39,134.34,11.21239961]
[1768783459408,22.60589274,134.43,134.37,6.86194199]
[1768783459719,7.43826243,134.44,134.39,6.86194199]
[1768783459919,30.04240115,134.44,134.39,6.86194199]
[1768783460124,1e-08,134.44,134.4,6.86194199]
[1768783460415,1e-08,134.44,134.39,4.35045762]
[1768783460724,1e-08,134.44,134.41,6.86194199]
[1768783460930,1e-08,134.44,134.41,6.8307465]
[1768783461228,1e-08,134.44,134.42,6.8307465]
[1768783461425,1e-08,134.44,134.41,6.8307465]
[1768783461609,1e-08,134.44,134.41,14.27064956]
[1768783462213,1e-08,134.44,134.39,6.8307465]
[1768783462413,1e-08,134.44,134.41,18.56693243]
[1768783463023,1e-08,134.44,134.35,54.19219555]
[1768783463024,6.83074651,134.44,134.38,6.8307465]
[1768783463201,6.83074651,134.44,134.35,16.24]
[1768783463202,6.8307465,134.43,134.37,18.56916212]
[1768783463605,7.43936914,134.42,134.37,18.56916212]
[1768783463805,14.27011564,134.42,134.36,14.27324924]
[1768783464031,11.44785181,134.42,134.36,7.44250274]
[1768783464331,18.27859831,134.42,134.36,18.56993512]
[1768783464531,11.44785181,134.42,134.36,18.56993512]
[1768783464827,14.27011564,134.42,134.36,18.56993512]
[1768783465733,14.27011564,134.42,134.35,7.44307401]
[1768783465734,7.44102983,134.39,134.35,7.44307401]
[1768783465912,7.44102983,134.39,134.34,18.5710989]
[1768783466113,7.44102983,134.39,134.34,4.29668588]
[1768783466326,7.44102983,134.39,134.34,11.74041929]
[1768783466508,14.27177633,134.39,134.34,11.74041929]
[1768783466703,14.27177633,134.39,134.34,4.29668588]
[1768783466704,6.8307465,134.38,134.34,4.29668588]
[1768783466907,6.8307465,134.37,134.32,4.29668588]
[1768783467213,6.8307465,134.35,134.29,11.74283801]
[1768783467406,6.8307465,134.34,134.29,4.29668588]
[1768783467828,14.27503716,134.34,134.29,4.29668588]
[1768783468034,6.8307465,134.33,134.29,4.29668588]
[1768783468224,6.8307465,134.31,134.27,4.29668588]
[1768783469130,6.8307465,134.32,134.27,4.29668588]
[1768783469325,7.44546199,134.31,134.27,4.29668588]
[1768783470413,7.44546199,134.31,134.27,18.57498829]
[1768783470636,7.44490992,134.32,134.28,4.29668588]
[1768783470820,18.60871383,134.35,134.28,4.29668588]
[1768783471027,18.60871383,134.35,134.3,6.8307465]
[1768783472115,26.05195908,134.35,134.3,6.8307465]
[1768783472319,7.44324525,134.35,134.31,6.8307465]
[1768783473361,7.44286909,134.36,134.33,6.8307465]
[1768783473829,7.44213738,134.37,134.33,6.8307465]
[1768783474612,7.44213738,134.37,134.32,11.12743238]
[1768783476279,30.0559635,134.37,134.29,4.29668588]
[1768783476456,30.0559635,134.37,134.32,6.8307465]
[1768783477166,7.44379931,134.34,134.3,14.2766238]
[1768783477378,7.44379931,134.34,134.3,7.4458773]
[1768783478645,18.60534345,134.37,134.32,4.20010542]
[1768783478871,18.60321058,134.39,134.35,6.8307465]
[1768783479167,18.59997495,134.41,134.35,4.20010542]
[1768783479376,18.59997495,134.41,134.37,6.8307465]
[1768783479561,18.59997495,134.41,134.36,6.8307465]
[1768783479767,7.44011744,134.41,134.37,6.8307465]
[1768783480274,7.44011744,134.41,134.36,11.03085192]
[1768783480574,7.44011744,134.41,134.36,4.20010542]
[1768783480778,11.80256779,134.41,134.32,26.05717688]
[1768783481072,11.80256779,134.41,134.32,7.44490768]
[1768783481073,4.36245035,134.38,134.32,7.44490768]
[1768783481773,4.36245035,134.38,134.33,6.8307465]
[1768783481968,4.36245035,134.37,134.32,14.27565418]
[1768783482662,11.80478381,134.37,134.32,14.27565418]
[1768783483069,7.44191782,134.38,134.33,11.03085192]
[1768783483390,7.44191782,134.38,134.34,6.8307465]
[1768783483593,7.44191782,134.38,134.33,11.03085192]
[1768783483763,11.80436817,134.38,134.33,11.03085192]
[1768783484673,11.80436817,134.38,134.33,4.20010542]
[1768783484886,11.19319685,134.37,134.31,4.20010542]
[1768783485064,4.36245035,134.36,134.31,4.20010542]
[1768783485693,11.19319685,134.35,134.29,18.47742277]
[1768783485982,11.19319685,134.33,134.27,11.03085192]
[1768783486187,11.19319685,134.33,134.27,11.64761368]
[1768783486374,11.19319685,134.33,134.27,18.47833288]
[1768783486375,4.36245035,134.33,134.27,18.47833288]
[1768783486566,4.36245035,134.33,134.28,7.44707614]
[1768783486766,11.80712451,134.33,134.28,7.44707614]
[1768783486990,11.80712451,134.33,134.28,14.27782264]
[1768783487366,11.7471245,134.33,134.28,7.44707614]
[1768783487584,18.577871,134.33,134.27,18.4784571]
[1768783488086,32.8863043,134.33,134.26,7.44802772]
[1768783488293,6.8307465,134.32,134.26,14.27877422]
[1768783488477,6.8307465,134.32,134.27,7.4476283]
[1768783488790,32.8863043,134.33,134.27,7.4476283]
[1768783489091,6.8307465,134.33,134.27,11.64773372]
[1768783489487,11.19319685,134.33,134.27,11.64773372]
[1768783490398,7.44490768,134.32,134.27,11.64773372]
[1768783490893,7.38490768,134.32,134.27,11.64773372]
[1768783491301,7.38490768,134.32,134.27,18.47848022]
[1768783491805,4.36245035,134.31,134.25,4.20010542]
[1768783491994,11.19319685,134.31,134.25,11.03085192]
[1768783492180,4.36245035,134.31,134.26,11.03085192]
[1768783492686,4.36245035,134.31,134.26,4.20010542]
[1768783492874,22.91726801,134.36,134.29,4.17149642]
[1768783493075,22.91726801,134.36,134.27,9.95090653]
[1768783493076,11.14060508,134.34,134.27,9.95090653]
[1768783493270,6.8307465,134.31,134.25,4.17149642]
[1768783493474,11.14060508,134.31,134.25,4.17149642]
[1768783493682,4.30985858,134.31,134.25,4.17149642]
[1768783493895,26.06105733,134.3,134.25,4.17149642]
[1768783494082,37.20166241,134.3,134.25,4.17149642]
[1768783494296,30.37091591,134.3,134.25,4.17149642]
[1768783494477,26.06105733,134.3,134.25,4.17149642]
[1768783494676,4.30985858,134.29,134.25,7.44878025]
[1768783495085,7.44601638,134.3,134.25,4.17149642]
[1768783495692,14.27676288,134.3,134.25,4.17149642]
[1768783495893,4.30985858,134.29,134.23,4.17149642]
[1768783496101,7.4471254,134.28,134.23,11.62124345]
[1768783496286,14.2778719,134.28,134.23,4.17149642]
[1768783496485,7.4471254,134.28,134.23,4.17149642]
[1768783496699,32.89568542,134.28,134.23,4.17149642]
[1768783497209,37.205544,134.28,134.23,4.17149642]
[1768783497381,4.30985858,134.27,134.19,4.17149642]
[1768783497585,26.06493892,134.28,134.22,6.8307465]
[1768783497586,4.30985858,134.26,134.22,6.8307465]
[1768783497805,4.30985858,134.27,134.21,18.45310127]
[1768783498008,7.44823476,134.26,134.21,18.45310127]
[1768783498194,7.44823476,134.26,134.22,6.8307465]
[1768783498689,7.44823476,134.26,134.21,11.62235477]
[1768783498891,7.44823476,134.26,134.22,6.8307465]
[1768783499093,7.44823476,134.26,134.21,18.45310127]
[1768783499311,4.30985858,134.26,134.2,7.45140592]
[1768783499494,4.30985858,134.26,134.21,4.17149642]
[1768783499684,4.30985858,134.26,134.21,11.62247726]
[1768783499884,4.30985858,134.26,134.21,18.45322376]
[1768783500205,4.30985858,134.26,134.21,4.17149642]
[1768783500805,4.30985858,134.21,134.18,5.54408856]
[1768783501010,4.30985858,134.21,134.18,0.2]
[1768783501309,14.28286662,134.19,134.18,1e-08]
[1768783501610,4.30985858,134.18,134.11,11.62768106]
[1768783501786,6.8307465,134.21,134.15,4.17149642]
[1768783501988,6.8307465,134.17,134.11,4.17149642]
[1768783502197,11.14060508,134.16,134.11,4.17149642]
[1768783502405,11.14060508,134.13,134.08,0.2]
[1768783502906,4.30985858,134.12,134.08,0.2]
[1768783503209,22.4,134.22,134.12,4.17149642]
[1768783503210,11.14060508,134.22,134.12,4.17149642]
[1768783503510,11.759758,134.23,134.16,11.00224292]
[1768783503713,37.21525306,134.23,134.16,11.00224292]
[1768783503884,4.30985858,134.22,134.16,11.00224292]
[1768783504211,6.8307465,134.18,134.11,11.00224292]
[1768783504409,6.8307465,134.18,134.09,5.34408856]
[1768783504410,26.07464798,134.23,134.13,4.17149642]
[1768783504611,11.14060508,134.19,134.13,4.17149642]
[1768783504783,4.30985858,134.17,134.12,11.00224292]
[1768783505206,4.30985858,134.21,134.14,4.17149642]
[1768783505415,11.7614234,134.2,134.14,4.17149642]
[1768783505617,4.30985858,134.19,134.14,4.17149642]
[1768783505815,26.08047689,134.2,134.11,11.62786847]
[1768783506004,6.8307465,134.18,134.12,4.17149642]
[1768783506722,6.8307465,134.17,134.12,4.17149642]
[1768783506908,4.30985858,134.18,134.12,4.17149642]
[1768783507224,6.8307465,134.15,134.1,4.17149642]
[1768783507401,14.28600008,134.14,134.1,4.17149642]
[1768783507719,7.45525358,134.14,134.1,4.17149642]
[1768783508022,4.30985858,134.11,134.08,0.2]
[1768783508320,11.14060508,134.13,134.08,0.2]
[1768783508508,11.14060508,134.12,134.08,0.2]
[1768783509313,14.287312,134.11,134.08,0.2]
[1768783509615,4.30985858,134.14,134.08,4.37149642]
[1768783509920,11.14060508,134.14,134.08,4.37149642]
[1768783510126,11.14060508,134.13,134.08,4.37149642]
[1768783510820,6.8307465,134.09,134.03,4.17149642]
[1768783511002,6.8307465,134.09,134.04,4.17149642]
[1768783511202,6.8307465,134.07,134.02,4.17149642]
[1768783511400,6.8307465,134.09,134.03,4.17149642]
[1768783511700,7.457794,134.09,134.03,4.17149642]
[1768783512111,14.2885405,134.09,134.03,4.17149642]
[1768783512602,6.8307465,134.05,134.0,4.17149642]
[1768783512796,6.8307465,134.05,134.01,4.17149642]
[1768783513526,14.29101012,134.05,133.99,7.46307393]
[1768783513703,6.8307465,134.04,133.99,11.63457035]
[1768783513900,6.8307465,134.03,133.99,4.17149642]
[1768783514104,6.8307465,134.02,133.98,0.2]
[1768783514309,4.30985858,134.03,133.98,0.2]
[1768783514706,6.8307465,134.02,133.98,0.2]
[1768783515129,6.8307465,134.02,133.98,4.37149642]
[1768783515508,14.29247467,134.02,133.98,4.37149642]
[1768783515706,6.8307465,134.01,133.98,0.2]
[1768783515925,11.14060508,134.0,133.98,1e-08]
[1768783516316,6.8307465,133.99,133.98,1e-08]
[1768783516922,4.30985858,134.02,133.98,7.46365016]
[1768783517127,7.46119269,134.03,133.98,4.17149643]
[1768783517429,7.46119269,134.03,133.98,11.6351878]
[1768783517611,14.29193919,134.03,133.98,11.63529591]
[1768783517816,11.77047642,134.04,133.99,4.17149642]
[1768783518028,18.60122292,134.04,133.99,4.17149642]
[1768783518541,6.8307465,134.03,133.99,4.17149642]
[1768783518932,37.25237183,134.04,133.99,4.17149642]
[1768783519110,30.42162533,134.04,133.99,4.17149642]
[1768783519311,18.60122292,134.04,133.99,4.17149642]
[1768783519807,18.60122292,134.04,133.98,1e-08]
[1768783520006,18.60122292,134.04,133.98,4.17149643]
[1768783520226,37.25237183,134.04,133.98,11.63517663]
[1768783520730,11.77047642,134.04,133.99,7.46317068]
[1768783521027,18.64438736,134.04,133.98,11.63511031]
[1768783522410,7.46007699,134.05,134.0,4.49642688]
[1768783522607,7.46007699,134.05,133.98,18.65950142]
[1768783522608,6.87391094,134.08,134.01,11.37033782]
[1768783522833,6.87391094,134.04,133.98,7.46378983]
[1768783523008,6.87391094,134.03,133.98,1e-08]
[1768783523721,6.87391094,134.03,133.95,0.2]
[1768783523722,4.45857615,133.98,133.95,0.2]
[1768783524053,11.33248709,133.98,133.95,0.2]
[1768783524609,14.33715446,133.99,133.95,0.2]
[1768783524823,7.46267484,134.01,133.96,4.49642688]
[1768783525212,18.79516193,134.01,133.96,4.49642688]
[1768783525412,44.51964994,134.19,134.01,4.49642688]
[1768783525720,26.10381861,134.08,134.01,18.83240834]
[1768783526045,26.10381861,134.08,134.02,4.49642688]
[1768783526046,4.45857615,134.07,134.02,4.49642688]
[1768783526422,6.87391094,134.06,134.0,4.49642688]
[1768783526613,4.45857615,134.05,133.99,7.46305785]
[1768783526807,11.33248709,134.05,133.99,7.46305785]
[1768783527010,4.45857615,134.05,133.99,11.95948473]
[1768783527320,11.33248709,134.05,133.99,11.95948473]
[1768783527926,8.26081699,134.04,133.99,11.95948473]
[1768783528517,7.46081699,134.04,133.99,4.49642688]
[1768783528718,18.79330408,134.04,133.97,18.83448984]
[1768783528915,11.33248709,134.03,133.97,11.9605789]
[1768783529426,11.33248709,134.03,133.98,7.463716]
[1768783529832,11.33248709,134.03,133.97,11.96062599]
[1768783530030,4.45857615,134.06,133.98,4.49642688]
[1768783530427,11.33248709,134.04,133.98,4.49642688]
[1768783530835,4.45857615,134.04,133.98,4.49642688]
[1768783531134,21.64408856,134.11,134.01,4.49642688]
[1768783531135,18.64668674,134.08,134.01,4.49642688]
[1768783531443,11.9156977,134.1,134.04,11.37033782]
[1768783531636,11.9156977,134.1,134.05,4.49642688]
[1768783532034,7.45672147,134.11,134.06,7.45934656]
[1768783532241,7.45672147,134.11,134.06,11.95577344]
[1768783532849,7.45672147,134.11,134.02,4.49642688]
[1768783532850,11.33248709,134.08,134.02,4.49642688]
[1768783533050,6.87391094,134.06,134.02,4.49642688]
[1768783533628,4.45857615,134.09,134.02,6.87391094]
[1768783533936,4.45857615,134.09,134.03,4.49642688]
[1768783534137,7.45823389,134.08,134.04,7.46042391]
[1768783534441,7.45823389,134.08,134.03,11.95724487]
[1768783535128,6.87391094,134.19,134.03,11.95724487]
[1768783535129,26.09408782,134.13,134.07,4.49642688]
[1768783535548,6.87391094,134.12,134.07,4.49642688]
[1768783536357,7.4565655,134.11,134.07,4.49642688]
[1768783536558,37.43046635,134.11,134.05,11.95606775]
[1768783536940,6.87391094,134.14,134.08,4.49642688]
[1768783537260,11.33248709,134.15,134.08,11.37033782]
[1768783538057,23.09520909,134.15,134.09,6.87391094]
[1768783538240,30.54955124,134.15,134.1,4.08616842]
[1768783538438,7.45434215,134.15,134.1,7.4570529]
[1768783538636,16.3,134.19,134.1,7.4570529]
[1768783538637,7.45267551,134.18,134.12,10.96007936]
[1768783539154,37.25776681,134.21,134.1,7.4570529]
[1768783539155,4.20950354,134.21,134.15,4.08616842]
[1768783539361,11.08341448,134.18,134.13,4.08616842]
[1768783539845,4.20950354,134.18,134.13,4.08616842]
[1768783540153,11.08341448,134.18,134.13,4.08616842]
[1768783540357,7.45323097,134.17,134.13,4.08616842]
[1768783540761,14.32714191,134.17,134.11,4.08616842]
[1768783541058,6.87391094,134.16,134.11,4.08616842]
[1768783541258,4.20950354,134.2,134.12,4.08616842]
[1768783541447,7.45212012,134.19,134.15,4.08616842]
[1768783541648,7.45212012,134.19,134.14,6.87391094]
[1768783541851,7.45212012,134.19,134.13,10.96007936]
[1768783542237,7.45212012,134.19,134.14,10.96007936]
[1768783542960,11.08341448,134.24,134.17,10.96007936]
[1768783543164,11.08341448,134.24,134.15,4.08616842]
[1768783543165,11.08341448,134.22,134.15,4.08616842]
[1768783543463,4.20950354,134.2,134.15,4.08616842]
[1768783543636,4.20950354,134.23,134.16,10.96007936]
[1768783543837,4.20950354,134.23,134.17,10.96007936]
[1768783544062,11.65829311,134.25,134.19,6.87391094]
[1768783544368,18.53220405,134.25,134.18,18.4125955]
[1768783544567,37.15417797,134.25,134.18,18.4125955]
[1768783544779,37.15417797,134.25,134.19,4.08616842]
[1768783544946,4.20950354,134.24,134.19,4.08616842]
[1768783545145,16.3,134.27,134.21,4.08616842]
[1768783545146,7.44842021,134.26,134.21,4.08616842]
[1768783545345,7.4478513,134.27,134.22,4.08616842]
[1768783545539,30.26894735,134.31,134.23,6.87391094]
[1768783545964,37.14285829,134.31,134.23,6.87391094]
[1768783546150,6.87391094,134.3,134.23,6.87391094]
[1768783546358,6.87391094,134.3,134.23,14.32350243]
[1768783546359,7.44601638,134.3,134.23,14.32350243]
[1768783546589,11.08341448,134.27,134.19,18.62982992]
[1768783546875,11.08341448,134.27,134.21,7.4505023]
[1768783547045,11.08341448,134.27,134.22,7.45020308]
[1768783547453,11.08341448,134.27,134.22,11.5363715]
[1768783547669,6.87391094,134.27,134.22,11.5363715]
[1768783547862,6.87391094,134.28,134.22,11.5363715]
[1768783548071,11.08341448,134.28,134.22,11.5363715]
[1768783548248,4.20950354,134.28,134.22,11.5363715]
[1768783548554,11.08341448,134.25,134.19,11.53791653]
[1768783549169,6.87391094,134.24,134.19,11.53791653]
[1768783549341,6.87391094,134.23,134.19,4.08616842]
[1768783549547,11.08341448,134.2,134.15,4.08616842]
[1768783549762,6.87391094,134.19,134.15,4.08616842]
[1768783550566,6.87391094,134.18,134.13,4.08616842]
[1768783551674,6.87391094,134.19,134.14,11.5408956]
[1768783551859,11.08341448,134.16,134.08,6.87391094]
[1768783552060,6.87391094,134.15,134.09,4.08616842]
[1768783552284,6.87391094,134.15,134.1,4.08616842]
[1768783552580,7.45489786,134.14,134.1,4.08616842]
[1768783552783,18.50641067,134.14,134.09,7.45755651]
[1768783552972,18.50641067,134.14,134.08,4.08198857]
[1768783553172,11.05151281,134.13,134.07,7.45863845]
[1768783553368,6.87391094,134.12,134.07,4.08198857]
[1768783553680,11.05151281,134.11,134.05,11.54150735]
[1768783554055,11.05151281,134.11,134.05,11.5416894]
[1768783554372,6.87391094,134.1,134.05,11.5416894]
[1768783554560,18.50919048,134.09,134.03,4.08198857]
[1768783555460,11.05151281,134.08,134.02,7.46143094]
[1768783555671,11.05151281,134.07,134.02,11.54341951]
[1768783555883,11.05151281,134.07,134.02,4.08198857]
[1768783556173,6.87391094,134.06,134.02,4.08198857]
[1768783556474,7.45990302,134.05,134.02,4.08198857]
[1768783556673,6.87391094,134.07,134.02,4.08198857]
[1768783557052,10.87497211,134.07,134.02,4.08198857]
[1768783557250,7.45600954,134.12,134.07,4.08198857]
[1768783557955,7.45552829,134.13,134.07,4.08198857]
[1768783558277,7.45552829,134.13,134.07,10.95589951]
[1768783558480,7.45552829,134.13,134.08,4.08198857]
[1768783558678,11.63313016,134.13,134.08,4.08198857]
[1768783558979,11.63313016,134.13,134.07,7.45871251]
[1768783559579,4.17760187,134.12,134.06,11.54124177]
[1768783559774,11.05151281,134.12,134.06,11.54124177]
[1768783560682,6.87391094,134.1,134.04,11.5420486]
[1768783560853,11.05151281,134.09,134.02,4.08198857]
[1768783561170,26.09797926,134.11,134.02,4.08198857]
[1768783561171,11.05151281,134.07,134.02,4.08198857]
[1768783561482,26.89797926,134.11,134.0,4.08198857]
[1768783561483,6.87391094,134.05,134.0,4.08198857]
[1768783561780,11.05151281,134.06,134.0,11.54450354]
[1768783562269,6.87391094,134.06,134.01,4.08198857]
[1768783562580,7.45879018,134.07,134.02,11.54356146]
[1768783562773,6.87391094,134.08,134.02,11.54356146]
[1768783562974,14.33230271,134.08,134.02,4.08198857]
[1768783563278,14.33230271,134.08,134.01,7.46195535]
[1768783563279,6.87391094,134.06,134.01,7.46195535]
[1768783564379,14.33334884,134.06,134.01,7.46195535]
[1768783564882,7.45894892,134.07,134.02,4.08198857]
[1768783565072,4.17760187,134.06,134.01,7.46195535]
[1768783565275,4.17760187,134.06,134.01,11.54394392]
[1768783565477,7.4584153,134.08,134.02,4.08198857]
[1768783566161,4.17760187,134.07,134.02,4.08198857]
[1768783566360,4.17760187,134.07,134.02,11.54329617]
[1768783566361,11.63644681,134.07,134.02,11.54329617]
[1768783566770,7.45837147,134.08,134.03,4.08198857]
[1768783567086,14.33228241,134.08,134.03,4.08198857]
[1768783567783,7.45724986,134.1,134.05,4.08198857]
[1768783567987,11.63423479,134.11,134.05,4.08198857]
[1768783568388,11.63269268,134.14,134.08,18.41366443]
[1768783568565,11.63269268,134.14,134.08,11.53975349]
[1768783568886,4.17760187,134.1,134.05,11.54170054]
[1768783569188,11.05151281,134.1,134.05,11.54170054]
[1768783569486,4.17760187,134.1,134.05,11.54170054]
[1768783569682,11.05151281,134.08,134.03,4.08198857]
[1768783569884,64.78233547,134.14,134.05,4.08198857]
[1768783569885,11.05151281,134.1,134.05,4.08198857]
[1768783570097,6.87391094,134.09,134.05,4.08198857]
[1768783570274,6.87391094,134.09,134.03,7.46090219]
[1768783570275,11.05151281,134.07,134.01,4.08198857]
[1768783570592,7.45934656,134.06,134.01,4.08198857]
[1768783570793,7.45934656,134.06,134.01,11.54389566]
[1768783571391,14.3332575,134.06,134.01,11.54405514]
[1768783571626,6.87391094,134.06,134.01,11.54405514]
[1768783571901,7.45827311,134.08,134.02,4.08198857]
[1768783572196,7.45771394,134.09,134.03,4.08198857]
[1768783572406,7.45731797,134.1,134.04,11.54244813]
[1768783572698,14.33122891,134.1,134.04,11.54244813]
[1768783572994,32.97403278,134.1,134.04,11.54244813]
[1768783573892,14.33122891,134.1,134.04,11.54244813]
[1768783574894,11.05151281,134.09,134.04,11.54244813]
[1768783575075,4.17760187,134.07,134.01,4.08198857]
[1768783575270,6.87391094,134.04,133.99,4.08198857]
[1768783575478,4.17760187,134.05,133.97,16.28]
[1768783575479,11.05151281,134.03,133.97,20.36198857]
[1768783575688,6.87391094,134.03,133.98,4.08198857]
[1768783576492,6.87391094,134.05,133.98,4.08198857]
[1768783576791,4.17760187,134.06,133.99,26.12135233]
[1768783576993,7.45952354,134.06,134.01,4.08198857]
[1768783577169,11.05151281,134.08,134.03,4.08198857]
[1768783577170,4.17760187,134.08,134.03,4.08198857]
[1768783577372,6.87391094,134.1,134.03,4.08198857]
[1768783577373,4.17760187,134.1,134.03,4.08198857]
[1768783577677,11.05151281,134.1,134.03,4.08198857]
[1768783577883,11.63361141,134.12,134.05,4.08198857]
[1768783578092,18.50752235,134.12,134.05,4.08198857]
[1768783578291,4.17760187,134.11,134.05,4.08198857]
[1768783578492,4.17760187,134.11,134.05,6.03e-06]
[1768783578993,7.45712155,134.1,134.05,14.33381999]
[1768783579203,11.63431966,134.11,134.05,14.33381999]
[1768783579572,514.6,134.71,134.07,6.87391094]
[1768783579573,4.17760187,134.13,134.07,6.87391094]
[1768783579778,11.63194402,134.15,134.07,6.87391094]
[1768783579979,11.63194402,134.15,134.07,23.15391094]
[1768783580488,7.45434215,134.15,134.1,4.08198857]
[1768783580995,11.63138839,134.16,134.1,4.08198857]
[1768783581198,4.17760187,134.15,134.09,7.45714475]
[1768783581496,11.03914139,134.15,134.09,7.45714475]
[1768783582276,6.86153952,134.15,134.07,18.64588669]
[1768783582475,26.08825282,134.16,132.87,140.7925799]
[1768783582476,4.33880183,134.12,134.03,4.23836386]
[1768783582677,11.20034135,134.09,134.03,11.69893233]
[1768783582884,7.45823389,134.08,134.01,44.51754312]
[1768783583087,11.79703572,134.08,134.02,7.46136062]
[1768783583279,6.86153952,134.07,134.02,7.46136062]
[1768783583796,6.86153952,134.07,134.02,4.23836386]
[1768783583991,6.86153952,134.07,134.01,7.46204619]
[1768783583992,11.20034135,134.07,134.01,7.46204619]
[1768783585201,7.45934656,134.06,134.01,6.85e-06]
[1768783585383,11.20034135,134.03,134.01,6.85e-06]
[1768783585898,4.33880183,134.02,134.01,6.85e-06]
[1768783586097,6.86153952,134.03,134.01,6.85e-06]
[1768783586801,4.33880183,134.04,134.01,6.85e-06]
[1768783587005,11.20034135,134.04,134.01,6.85e-06]
[1768783587206,7.46101619,134.03,134.01,6.85e-06]
[1768783587921,18.66094542,134.04,134.01,6.85e-06]
[1768783588077,11.20034135,134.06,134.01,6.85e-06]
[1768783588278,7.45879018,134.07,134.01,4.23837071]
[1768783588480,11.20034135,134.06,134.01,6.85e-06]
[1768783588798,11.20034135,134.03,134.01,6.85e-06]
[1768783589385,18.6616871,134.03,134.01,6.85e-06]
[1768783590108,11.80014758,134.03,134.01,6.85e-06]
[1768783590293,18.6616871,134.03,134.01,6.85e-06]
[1768783590605,6.86153952,134.02,134.01,6.85e-06]
[1768783591379,11.80014758,134.03,134.01,6.85e-06]
[1768783591582,6.86153952,134.02,134.01,6.85e-06]
[1768783591780,7.46134575,134.03,133.95,0.2]
[1768783591781,6.86153952,134.0,133.95,0.2]
[1768783592203,11.20034135,134.0,133.95,0.2]
[1768783592500,18.66358487,133.99,133.95,0.2]
[1768783592699,6.86153952,133.98,133.95,0.2]
[1768783592892,11.20034135,133.94,133.87,4.43836386]
[1768783593080,11.20034135,133.93,133.87,11.90790921]
[1768783593279,4.33880183,133.93,133.88,7.46931989]
[1768783593695,4.33880183,133.96,133.88,4.23836386]
[1768783593894,11.20034135,133.98,133.91,4.23836386]
[1768783594298,26.12135233,133.99,133.93,11.09990338]
[1768783594299,7.46324352,133.99,133.93,11.09990338]
[1768783594503,4.33880183,134.02,133.95,11.09990338]
[1768783594691,4.33880183,134.02,133.96,6.86153952]
[1768783595205,30.45430696,134.02,133.95,11.09990338]
[1768783595381,30.45430696,134.02,133.94,6.86153952]
[1768783595382,4.33880183,134.0,133.94,6.86153952]
[1768783596007,11.20034135,134.0,133.93,11.70490293]
[1768783596180,11.20034135,134.0,133.93,18.56644245]
[1768783596383,7.46324352,133.99,133.93,18.56644245]
[1768783597695,18.6632016,134.0,133.94,4.1560936]
[1768783597892,25.51455095,134.03,133.96,4.1560936]
[1768783598097,7.46115654,134.03,133.98,4.1560936]
[1768783598513,7.46058403,134.04,133.99,11.01763312]
[1768783598713,7.46058403,134.04,133.98,6.86153952]
[1768783599018,7.46058403,134.04,133.98,11.01763312]
[1768783599397,4.06164228,134.09,134.02,6.86153952]
[1768783599615,11.51931995,134.09,134.02,18.47873697]
[1768783600309,18.38085947,134.09,134.02,18.47873697]
[1768783600794,10.9231818,134.13,134.05,4.1560936]
[1768783600996,10.9231818,134.13,134.05,11.01763312]
[1768783601419,10.9231818,134.13,134.06,4.1560936]
[1768783601720,37.01758534,134.13,134.06,11.61523486]
[1768783602111,7.45545366,134.13,134.07,11.01763312]
[1768783602416,18.37863546,134.13,134.07,4.1560936]
[1768783602618,18.37799144,134.15,134.07,11.01763312]
[1768783602809,7.45480964,134.15,134.1,4.1560936]
[1768783603820,18.3772831,134.16,134.1,4.1560936]
[1768783603995,11.51376979,134.19,134.12,4.1560936]
[1768783604198,4.06164228,134.18,134.12,4.1560936]
[1768783604414,10.9231818,134.16,134.1,11.6129691]
[1768783604623,26.08242783,134.19,134.1,11.6129691]
[1768783604624,10.9231818,134.18,134.11,4.1560936]
[1768783604817,6.86153952,134.17,134.11,4.1560936]
[1768783604999,10.9231818,134.17,134.11,4.1560936]
[1768783605200,4.06164228,134.17,134.11,4.1560936]
[1768783605704,10.9231818,134.15,134.07,9.50018216]
[1768783605924,10.9231818,134.14,134.07,4.1560936]
[1768783606295,10.9231818,134.14,134.05,40.27271216]
[1768783606296,10.9231818,134.12,134.05,27.29763312]
[1768783606500,4.06164228,134.12,134.05,27.29763312]
[1768783606695,4.06164228,134.12,134.06,7.45893507]
[1768783606920,4.06164228,134.12,134.06,11.61502867]
[1768783607124,4.06164228,134.12,134.07,7.45868726]
[1768783607315,4.06164228,134.12,134.06,4.1560936]
[1768783607716,11.51816724,134.12,134.06,4.1560936]
[1768783608414,11.51816724,134.12,134.06,11.01763312]
[1768783608611,4.06164228,134.12,134.06,18.4768437]
[1768783608812,22.69627196,134.16,134.09,4.1560936]
[1768783609011,16.3,134.18,134.07,4.1560936]
[1768783609012,10.9231818,134.13,134.07,4.1560936]